bitfinex/quotes_ETHUSD_20250914
["timestamp","ask_amount","ask_price","bid_price","bid_amount"]
[1757859659028,0.108,4618.6,4618.5,3.12398028]
[1757859659226,0.108,4618.6,4618.5,3.59488028]
[1757859659444,0.002,4618.7,4618.6,2.16515827]
[1757859659650,0.002,4618.7,4618.6,2.62765827]
[1757859659847,0.002,4618.7,4618.6,3.39335827]
[1757859660051,4.242,4618.7,4618.6,3.39335827]
[1757859660248,4.242,4618.7,4618.6,3.59443046]
[1757859660465,4.242,4618.7,4618.6,7.38037857]
[1757859660675,4.242,4618.7,4618.6,7.36943046]
[1757859661028,4.242,4618.7,4618.6,3.59443046]
[1757859661342,4.242,4618.7,4618.6,7.36943046]
[1757859662667,4.24,4618.7,4618.6,11.32289402]
[1757859662841,0.08,4618.8,4618.7,5.16511139]
[1757859663050,0.08,4618.8,4618.7,5.36618358]
[1757859663235,0.002,4619.2,4618.9,2.16499435]
[1757859663438,0.002,4619.2,4619.1,2.1649239]
[1757859663664,0.002,4619.2,4619.1,2.67173834]
[1757859663874,0.002,4619.2,4619.1,6.60513834]
[1757859664173,0.002,4619.2,4619.1,6.59419609]
[1757859664379,0.002,4619.2,4619.1,7.97316119]
[1757859665937,0.002,4619.2,4619.1,6.74496119]
[1757859666135,0.002,4619.2,4619.1,6.14099609]
[1757859666357,0.002,4619.2,4619.1,2.36599609]
[1757859667195,0.002,4619.2,4619.1,2.66079609]
[1757859667501,0.002,4619.2,4619.1,7.37913834]
[1757859667659,0.002,4619.2,4619.1,10.36819609]
[1757859667858,0.002,4619.2,4619.1,11.62151671]
[1757859668092,0.002,4619.2,4619.1,6.61931671]
[1757859668267,0.002,4619.2,4619.1,9.13999609]
[1757859668464,4.242,4619.2,4619.1,2.36599609]
[1757859668667,5.034,4619.2,4619.1,0.20107219]
[1757859668983,5.034,4619.2,4618.6,2.1651519]
[1757859668984,0.792,4619.1,4618.6,2.16514341]
[1757859669153,0.792,4619.1,4618.1,3.774]
[1757859669154,0.792,4618.9,4618.7,0.20167504]
[1757859669485,0.792,4618.9,4618.8,0.20167504]
[1757859670065,0.792,4618.9,4618.5,0.20167504]
[1757859670265,0.792,4618.9,4618.6,0.20167504]
[1757859670465,0.792,4618.9,4618.7,0.20167504]
[1757859670668,0.792,4618.9,4618.8,0.20167504]
[1757859671387,0.81906272,4618.9,4618.8,0.20167504]
[1757859671976,0.81906272,4618.9,4617.6,3.0]
[1757859671977,1.297,4618.1,4615.1,2.71967543]
[1757859672292,1.297,4618.1,4615.2,0.4625]
[1757859672293,0.58121363,4617.4,4615.2,0.4625]
[1757859672489,2.70007325,4617.3,4615.8,2.16644589]
[1757859672675,4.567,4617.2,4615.9,0.01097416]
[1757859672874,0.792,4617.0,4615.8,0.4625]
[1757859673188,0.02707444,4616.9,4616.3,2.16622465]
[1757859673386,0.02707444,4616.9,4616.2,0.4625]
[1757859673588,0.02707444,4616.9,4616.3,2.16622885]
[1757859673816,0.02707444,4616.9,4616.2,2.62876181]
[1757859674200,0.02707444,4616.9,4616.2,0.4625]
[1757859674387,0.02707444,4616.9,4616.3,2.16623702]
[1757859674717,0.02707444,4616.9,4616.3,2.16623019]
[1757859674918,0.02707444,4616.9,4616.2,2.6287688]
[1757859675216,0.02707444,4616.9,4616.6,2.16607424]
[1757859675586,0.02707444,4616.9,4616.4,2.16617482]
[1757859675788,0.792,4617.0,4616.8,2.46080242]
[1757859676022,3.775,4617.8,4616.9,0.4691]
[1757859676223,0.02706975,4617.7,4616.5,0.01096946]
[1757859676388,0.81906975,4617.7,4615.9,0.4691]
[1757859676588,0.81906975,4617.7,4616.4,2.16618363]
[1757859676788,0.792,4617.5,4616.5,2.16613481]
[1757859677033,0.792,4617.5,4616.1,2.16630788]
[1757859677034,0.02707151,4617.4,4616.3,2.16620638]
[1757859677330,0.02707151,4617.4,4616.4,2.16618883]
[1757859677554,0.02707151,4617.4,4615.8,3.776]
[1757859677733,0.02707151,4617.4,4616.7,2.16604209]
[1757859678031,0.792,4617.2,4616.7,2.16604209]
[1757859678195,0.02707327,4617.1,4616.7,0.4691]
[1757859678391,4.567,4617.2,4616.1,0.4527]
[1757859678593,3.836,4619.4,4618.3,2.16528663]
[1757859678901,0.02706389,4618.7,4617.6,3.836]
[1757859679113,0.02706389,4618.7,4618.5,2.16519916]
[1757859679329,0.02906096,4619.2,4618.7,2.16511139]
[1757859679923,0.002,4619.2,4618.9,2.16500149]
[1757859680093,0.002,4619.2,4619.0,0.01094342]
[1757859680421,0.002,4619.2,4619.1,2.4716239]
[1757859680795,0.002,4619.2,4619.1,3.3934239]
[1757859682346,0.002,4619.2,4619.1,4.34386644]
[1757859682737,0.002,4619.2,4619.1,7.34386644]
[1757859683337,0.002,4619.2,4619.1,9.7717239]
[1757859683855,0.002,4619.2,4619.1,5.9407239]
[1757859684767,0.002,4619.2,4619.1,5.1649239]
[1757859684933,0.11,4619.2,4619.1,5.9407239]
[1757859687962,0.792,4619.1,4618.5,0.5771]
[1757859688162,0.792,4619.1,4619.0,2.16497077]
[1757859688466,0.002,4619.2,4619.0,2.16497077]
[1757859688761,0.002,4619.2,4619.1,2.1649239]
[1757859690444,5.034,4619.2,4619.1,2.1649239]
[1757859691942,4.242,4619.2,4619.1,2.9407239]
[1757859692356,4.242,4619.2,4619.1,3.45129681]
[1757859692860,4.242,4619.2,4619.1,6.90399681]
[1757859693374,0.002,4619.2,4619.1,6.90399681]
[1757859697368,0.002,4619.2,4619.1,10.71099681]
[1757859697999,4.24,4620.1,4619.9,2.16454901]
[1757859698201,4.242,4620.2,4620.0,2.94030216]
[1757859698494,4.242,4620.2,4620.1,2.16445531]
[1757859698698,4.242,4620.2,4620.1,2.95118585]
[1757859699201,4.242,4620.2,4620.1,2.94025531]
[1757859699903,4.242,4620.2,4620.1,2.16445531]
[1757859700266,4.341,4620.2,4620.1,2.16445531]
[1757859701590,4.242,4620.2,4620.1,2.16445531]
[1757859701997,4.341,4620.2,4620.1,2.16445531]
[1757859702483,4.242,4620.2,4620.1,2.16445531]
[1757859704308,4.242,4620.2,4620.1,2.94025531]
[1757859704474,4.242,4620.2,4620.1,2.16445531]
[1757859704912,4.242,4620.2,4620.1,2.94025531]
[1757859705308,4.242,4620.2,4620.1,2.16445531]
[1757859709908,5.133,4620.2,4620.1,2.16445531]
[1757859713719,4.242,4620.2,4620.1,2.91645531]
[1757859713919,4.35,4620.2,4620.1,2.91645531]
[1757859716060,4.35,4620.2,4620.1,2.16445531]
[1757859716371,4.449,4620.2,4620.1,2.16445531]
[1757859716866,4.35,4620.2,4620.1,2.16445531]
[1757859717545,4.35,4620.2,4620.1,2.45475531]
[1757859717849,4.35,4620.2,4620.1,2.91645531]
[1757859718561,4.35,4620.2,4620.1,2.45475531]
[1757859718730,4.35,4620.2,4620.1,2.91645531]
[1757859719450,4.35,4620.2,4620.1,2.16445531]
[1757859722666,5.2888551,4620.2,4620.1,2.16445531]
[1757859722954,5.2618,4620.2,4620.1,2.16445531]
[1757859723920,0.792,4620.1,4618.8,0.001]
[1757859724124,0.108,4619.5,4618.8,2.62776392]
[1757859724422,0.108,4619.5,4619.4,2.1647833]
[1757859724960,4.348,4619.5,4619.4,2.1647833]
[1757859726981,4.348,4619.5,4619.4,2.4550833]
[1757859727766,4.24,4619.5,4619.4,7.1816833]
[1757859727979,3.776,4620.0,4619.4,7.1816833]
[1757859727980,4.348,4619.9,4619.8,2.16459586]
[1757859728180,4.24,4619.9,4619.8,7.18149586]
[1757859728492,0.002,4620.2,4619.9,2.16454901]
[1757859728651,0.002,4620.2,4620.0,0.20251181]
[1757859728856,0.002,4620.2,4620.1,6.43326712]
[1757859729069,0.002,4620.2,4620.1,6.92216712]
[1757859729378,0.002,4620.2,4620.1,7.38386712]
[1757859731954,0.002,4620.2,4620.1,10.38386712]
[1757859732173,0.002,4620.2,4620.1,11.843275]
[1757859734328,0.00200001,4620.8,4620.7,2.16417425]
[1757859734479,0.00200001,4620.8,4620.7,9.14268606]
[1757859734683,0.00200001,4620.8,4620.7,9.43298606]
[1757859734893,0.00200001,4620.8,4620.7,11.70940923]
[1757859736531,0.00200001,4620.8,4620.1,1.35140788]
[1757859736532,0.792,4620.7,4619.3,1.9392995]
[1757859736822,0.792,4620.5,4619.0,2.1649248]
[1757859736993,0.02705393,4620.4,4619.1,2.94993664]
[1757859737503,0.02705393,4620.4,4619.6,2.16468407]
[1757859737723,0.02705393,4620.4,4619.7,2.16463868]
[1757859737724,0.792,4620.2,4619.7,2.16463868]
[1757859737910,0.4583,4620.6,4619.6,3.776]
[1757859737911,0.02705569,4620.1,4619.8,2.16459387]
[1757859738090,0.02705393,4620.4,4619.8,2.16459387]
[1757859738286,0.02705393,4620.4,4619.7,2.16463292]
[1757859738485,0.02705393,4620.4,4619.6,3.776]
[1757859738486,0.792,4620.2,4619.6,3.776]
[1757859738682,0.02705569,4620.1,4619.8,2.16456181]
[1757859739016,0.81905334,4620.5,4619.7,2.16460455]
[1757859739225,0.81905334,4620.5,4619.6,3.776]
[1757859739520,0.81905334,4620.5,4619.7,2.16464272]
[1757859739815,0.48556392,4620.4,4619.5,2.16469407]
[1757859740018,0.02705452,4620.3,4619.6,2.16466771]
[1757859740425,0.02705452,4620.3,4619.4,3.776]
[1757859740426,0.02705452,4620.3,4619.4,2.16478307]
[1757859740582,0.02705452,4620.3,4619.6,2.16467556]
[1757859741089,0.0270551,4620.2,4619.6,2.16467556]
[1757859741329,0.0270551,4620.2,4619.4,2.16475478]
[1757859741561,11.04519033,4620.1,4618.6,3.4392]
[1757859741714,1.72832449,4620.0,4618.7,3.776]
[1757859741909,1.72832449,4620.0,4619.2,2.16487525]
[1757859742115,1.72832449,4620.0,4619.3,2.16481886]
[1757859742314,0.792,4619.8,4619.3,2.16481886]
[1757859742539,0.02705803,4619.7,4618.6,0.4392]
[1757859742851,0.02705803,4619.7,4619.4,2.16478017]
[1757859743043,0.81905744,4619.8,4619.4,2.16478017]
[1757859743214,0.792,4619.6,4619.4,2.16478017]
[1757859743418,0.0270592,4619.5,4619.4,2.16478017]
[1757859743817,0.02705627,4620.0,4619.4,2.16478017]
[1757859744017,0.02705627,4620.0,4619.5,2.16471984]
[1757859744322,0.02705627,4620.0,4619.4,2.16477771]
[1757859744528,0.792,4619.8,4619.4,2.16477771]
[1757859744729,0.81905744,4619.8,4619.4,2.16477771]
[1757859744928,0.81905744,4619.8,4619.5,2.16473529]
[1757859745132,0.81905744,4619.8,4619.4,2.16477964]
[1757859745335,0.792,4619.6,4619.4,2.16477964]
[1757859745618,0.792,4619.6,4619.5,2.16473644]
[1757859745817,0.792,4619.6,4619.4,2.164778]
[1757859746548,0.108,4619.4,4619.1,2.16490214]
[1757859746770,5.032,4619.5,4619.4,2.16473761]
[1757859746918,5.62989149,4619.5,4619.4,2.16473761]
[1757859748055,5.032,4619.5,4619.4,2.16473761]
[1757859748229,4.24,4619.5,4619.4,2.89133761]
[1757859748429,4.348,4619.5,4619.4,2.89133761]
[1757859749066,4.24,4619.5,4619.4,3.36743761]
[1757859750780,4.24,4619.5,4619.4,6.36743761]
[1757859750947,4.24,4619.5,4619.4,7.59936103]
[1757859752680,4.24,4619.5,4616.8,0.4761]
[1757859752681,0.792,4619.2,4616.8,0.4761]
[1757859752973,10.25319033,4617.8,4617.7,2.16558026]
[1757859753145,11.27850936,4617.8,4617.6,3.126]
[1757859753338,10.25319033,4617.8,4617.6,3.5652]
[1757859753771,10.25319033,4617.8,4617.6,3.126]
[1757859754564,0.02706975,4617.7,4616.8,0.4761]
[1757859754759,10.25319033,4617.0,4616.9,7.61194247]
[1757859755290,5.9513023,4618.3,4616.9,7.61194247]
[1757859755291,10.25319033,4617.6,4617.5,2.16565393]
[1757859755466,10.25319033,4617.6,4617.3,3.785]
[1757859756266,0.792,4618.2,4617.4,2.16572096]
[1757859756465,0.792,4618.0,4617.3,5.95076557]
[1757859756687,0.02706858,4617.9,4617.3,5.95076557]
[1757859757203,0.02706858,4617.9,4617.3,3.785]
[1757859758098,0.02706858,4617.9,4617.4,2.16572096]
[1757859758487,0.02706858,4617.9,4617.4,2.16571014]
[1757859758797,0.792,4617.7,4617.3,3.785]
[1757859758966,0.02706858,4617.9,4617.4,2.16569252]
[1757859759162,0.02706858,4617.9,4617.3,5.95076504]
[1757859759600,0.02706858,4617.9,4617.4,2.16571663]
[1757859759896,0.02706858,4617.9,4617.3,3.785]
[1757859760103,0.792,4617.7,4617.0,0.4392]
[1757859760268,0.02707033,4617.6,4617.1,3.779]
[1757859760778,0.02707033,4617.6,4617.2,0.4392]
[1757859760979,0.81906975,4617.7,4617.2,2.60501452]
[1757859761174,0.81906975,4617.7,4617.2,2.16581452]
[1757859761479,0.81906975,4617.7,4617.3,0.4392]
[1757859761667,0.81906975,4617.7,4617.5,2.1656738]
[1757859761873,0.792,4617.7,4617.5,0.4392]
[1757859763266,0.792,4617.7,4617.5,2.60486933]
[1757859763670,0.792,4617.7,4617.5,0.4392]
[1757859763874,0.792,4617.7,4617.5,2.60486734]
[1757859764307,0.792,4617.7,4617.5,2.60487044]
[1757859764729,0.792,4617.7,4617.5,0.4392]
[1757859764943,0.108,4617.5,4617.3,2.16575735]
[1757859765112,0.792,4617.7,4617.4,2.16571571]
[1757859765741,0.792,4617.7,4617.5,2.165665]
[1757859766312,0.108,4617.5,4617.3,2.16572874]
[1757859766512,0.81906799,4618.0,4617.4,2.16571738]
[1757859766714,0.108,4617.4,4617.3,2.61535991]
[1757859766928,0.81906916,4617.8,4617.3,2.91465991]
[1757859767325,0.81906916,4617.8,4617.4,2.6153172]
[1757859768708,0.81906916,4617.8,4617.4,0.4496]
[1757859769745,0.108,4617.4,4617.2,2.16581151]
[1757859769942,0.108,4617.4,4617.2,2.61541151]
[1757859770142,4.24,4617.3,4617.2,2.61541151]
[1757859770339,4.24,4617.3,4617.2,2.91471477]
[1757859770652,4.24,4617.3,4617.2,0.7489]
[1757859771040,4.24,4617.3,4617.2,2.91471477]
[1757859772466,4.24,4617.3,4617.2,2.16581477]
[1757859772640,4.24,4617.3,4617.1,2.16683823]
[1757859773160,4.24,4617.3,4617.2,2.16581477]
[1757859773325,4.24,4617.5,4617.2,2.16581477]
[1757859773526,0.02707151,4617.4,4617.2,2.16581477]
[1757859773949,0.02707151,4617.4,4617.1,2.16685986]
[1757859774159,0.108,4617.2,4617.1,2.16685986]
[1757859774549,9.35450715,4617.2,4617.1,0.001]
[1757859774922,9.35450715,4617.2,4617.1,0.7747]
[1757859775165,9.35450715,4617.2,4617.1,0.001]
[1757859776662,8.917,4617.2,4617.1,0.3005]
[1757859776864,8.917,4617.2,4617.1,0.7747]
[1757859777373,8.125,4617.2,4617.1,0.7747]
[1757859777660,4.348,4617.2,4617.1,3.39896168]
[1757859778440,4.348,4617.2,4617.1,2.94056168]
[1757859778962,4.348,4617.2,4617.1,2.16686168]
[1757859779193,4.348,4617.2,4617.1,0.001]
[1757859780190,4.348,4617.2,4617.1,2.16686168]
[1757859780669,4.348,4617.2,4617.1,2.94056168]
[1757859781196,4.348,4617.2,4617.1,0.001]
[1757859781367,5.16320715,4617.2,4617.1,0.001]
[1757859781573,8.94020715,4617.2,4617.1,0.001]
[1757859782159,8.94020715,4617.2,4614.0,0.4584]
[1757859782160,1.299,4616.6,4614.0,0.4584]
[1757859782393,0.792,4616.3,4614.1,1.9042]
[1757859782602,0.57897461,4615.7,4614.2,0.4742]
[1757859782937,10.27506719,4615.0,4614.1,1.43]
[1757859783058,10.27506719,4614.3,4614.1,1.43]
[1757859783267,10.27506719,4614.3,4614.1,1.9042]
[1757859783509,0.792,4614.6,4614.2,0.7737]
[1757859783674,0.49112172,4614.5,4614.3,0.4742]
[1757859784087,0.4640332,4614.4,4614.1,1.43]
[1757859784278,0.02708852,4614.5,4614.1,1.43]
[1757859784480,0.49112172,4614.5,4614.1,1.43]
[1757859784790,0.792,4614.4,4614.1,1.43]
[1757859784997,0.02708969,4614.3,4614.1,1.43]
[1757859785169,0.02708969,4614.3,4614.2,0.4742]
[1757859785364,0.792,4614.6,4614.2,1.2321]
[1757859785560,0.792,4614.6,4614.3,0.4742]
[1757859786184,0.792,4614.6,4614.2,0.4584]
[1757859786357,0.792,4614.6,4614.4,0.4742]
[1757859786573,0.792,4614.6,4614.5,0.7737]
[1757859786959,0.81908793,4614.6,4614.1,1.9042]
[1757859787177,0.81908793,4614.6,4614.1,1.43]
[1757859787373,1.28069672,4614.6,4614.1,1.43]
[1757859789770,0.792,4614.5,4614.1,1.43]
[1757859790082,3.81608911,4614.4,4614.1,1.43]
[1757859791109,5.98322269,4614.4,4614.1,1.43]
[1757859791420,0.792,4614.3,4614.1,1.43]
[1757859791607,0.02709028,4614.2,4614.1,1.43]
[1757859792422,5.9863132,4614.2,4614.1,1.43]
[1757859792607,5.95922292,4614.2,4614.1,1.43]
[1757859792812,6.86318717,4614.2,4614.1,1.43]
[1757859793319,2.16769282,4613.2,4612.8,0.08]
[1757859793499,0.792,4613.0,4612.8,0.08]
[1757859793689,0.792,4612.8,4612.0,2.47245389]
[1757859793891,0.792,4612.6,4612.0,2.47245389]
[1757859794091,0.02710027,4612.5,4612.0,2.47245389]
[1757859794291,0.02710027,4612.5,4612.0,0.3042]
[1757859794786,0.02710027,4612.5,4612.0,2.16825377]
[1757859795018,0.02710027,4612.5,4611.4,1.663]
[1757859795213,3.783,4612.4,4612.1,0.4584]
[1757859795388,3.783,4612.4,4612.3,0.2995]
[1757859795787,3.783,4612.4,4612.3,0.7737]
[1757859796015,3.783,4612.4,4612.3,2.94181569]
[1757859796211,3.783,4612.4,4612.3,0.7737]
[1757859796917,3.783,4612.4,4612.3,2.94181569]
[1757859797425,3.783,4612.4,4612.3,0.7737]
[1757859798123,3.783,4612.4,4611.9,2.16825953]
[1757859798323,3.783,4612.4,4612.0,0.4717]
[1757859798698,3.783,4612.4,4612.2,2.16815608]
[1757859798898,3.783,4612.4,4612.2,0.4717]
[1757859799622,3.783,4612.4,4612.2,2.63984643]
[1757859800029,3.783,4612.4,4612.3,2.46641569]
[1757859800223,3.783,4612.4,4612.3,0.77]
[1757859800626,8.023,4612.4,4611.9,0.4717]
[1757859800827,0.02710144,4612.3,4612.0,0.4717]
[1757859801005,0.02710144,4612.3,4611.7,2.64009252]
[1757859801324,0.02710144,4612.3,4611.7,2.64009309]
[1757859801535,0.02710144,4612.3,4611.7,0.4717]
[1757859801699,4.24,4612.2,4611.7,0.4717]
[1757859801900,3.80710262,4612.1,4611.8,0.4717]
[1757859802100,4.24,4612.0,4611.8,0.4717]
[1757859803030,4.24,4612.0,4611.9,0.2983]
[1757859803228,4.24,4612.0,4611.9,0.77]
[1757859804013,4.24,4612.0,4611.9,2.93830373]
[1757859804202,4.24,4612.0,4611.9,0.77]
[1757859804403,4.2671032,4612.0,4611.9,0.77]
[1757859804604,4.24,4612.0,4611.9,0.2983]
[1757859805130,0.108,4611.9,4611.7,2.1683719]
[1757859805333,0.108,4611.6,4610.6,0.4506]
[1757859805547,0.108,4610.9,4610.6,0.9223]
[1757859806112,0.13510967,4610.9,4610.6,0.4717]
[1757859806348,0.108,4610.9,4610.6,0.4717]
[1757859806648,3.081,4610.9,4610.4,2.16899458]
[1757859807019,3.081,4610.9,4610.2,0.4717]
[1757859807213,3.081,4610.9,4610.5,2.16892211]
[1757859807516,3.081,4610.9,4610.8,0.85]
[1757859807745,3.081,4610.9,4610.8,3.01882102]
[1757859807915,3.081,4610.9,4610.8,0.85]
[1757859808117,3.081,4610.9,4610.8,0.3783]
[1757859808336,3.081,4610.9,4610.8,2.54712102]
[1757859808852,2.973,4610.9,4610.8,0.85]
[1757859809214,2.973,4610.9,4610.8,3.01882102]
[1757859809443,2.973,4610.9,4610.8,2.54712102]
[1757859809840,0.48769686,4611.3,4610.8,0.85]
[1757859810044,3.781,4611.2,4610.9,0.9223]
[1757859810244,3.781,4611.2,4611.1,0.2983]
[1757859810445,3.781,4611.2,4611.1,0.77]
[1757859810643,3.781,4611.2,4611.1,2.93867992]
[1757859810843,1.664,4611.4,4611.1,0.77]
[1757859811045,3.781,4611.3,4611.1,0.77]
[1757859811352,3.781,4611.3,4611.1,2.93865794]
[1757859811538,0.02710791,4611.2,4610.8,0.08]
[1757859812246,0.46212346,4611.1,4610.8,0.08]
[1757859812441,0.02710908,4611.0,4610.8,0.08]
[1757859812640,3.781,4610.9,4610.8,0.08]
[1757859813156,5.05281079,4610.9,4610.8,0.08]
[1757859813328,1.17281079,4610.9,4610.8,0.08]
[1757859813656,5.54254853,4610.9,4610.8,0.08]
[1757859813816,5.51543886,4610.9,4610.8,0.08]
[1757859814854,5.51543886,4610.9,4610.8,0.081]
[1757859818955,7.68421285,4610.9,4610.8,0.081]
[1757859819149,8.33525239,4610.9,4610.8,0.081]
[1757859819656,6.1664784,4610.9,4610.8,0.081]
[1757859819956,6.0674784,4610.9,4610.8,0.081]
[1757859820746,5.60485033,4610.9,4610.8,0.081]
[1757859820950,6.0674784,4610.9,4610.8,0.081]
[1757859821148,5.60485033,4610.9,4610.8,0.081]
[1757859821356,6.1664784,4610.9,4610.8,0.081]
[1757859822644,6.0674784,4610.9,4610.8,0.081]
[1757859823177,6.1664784,4610.9,4610.8,0.081]
[1757859824972,6.0674784,4610.9,4610.8,0.081]
[1757859825675,6.1664784,4610.9,4610.8,0.081]
[1757859826473,6.0674784,4610.9,4610.8,0.081]
[1757859826656,5.60485033,4610.9,4610.8,0.081]
[1757859826856,6.0674784,4610.9,4610.8,0.081]
[1757859827256,5.60485033,4610.9,4610.8,0.081]
[1757859828082,1.82385033,4610.9,4610.8,0.081]
[1757859828281,4.43203954,4610.9,4610.8,3.51242102]
[1757859828580,4.43203954,4610.9,4610.8,1.3436]
[1757859829080,3.781,4610.9,4610.8,1.3436]
[1757859830601,3.781,4610.9,4610.8,0.3951]
[1757859830781,3.781,4610.9,4610.8,0.081]
[1757859831590,3.88,4610.9,4610.8,0.081]
[1757859831902,12.54716053,4610.9,4610.8,0.081]
[1757859832203,12.54716053,4610.9,4610.8,1e-08]
[1757859832204,15.80386813,4610.9,4610.8,1e-08]
[1757859832368,0.792,4610.6,4610.3,0.001]
[1757859832569,0.792,4609.3,4608.8,0.08]
[1757859832873,0.792,4609.1,4608.8,0.08]
[1757859833074,3.80712085,4609.0,4608.8,0.08]
[1757859833266,0.792,4608.9,4608.8,0.08]
[1757859833468,1.665,4609.2,4608.9,0.3057]
[1757859833681,0.02712026,4609.1,4609.0,0.4311]
[1757859833896,3.80712026,4609.1,4608.8,0.08]
[1757859834091,2.16971511,4608.9,4608.8,0.08]
[1757859834308,4.59912143,4608.9,4608.8,0.08]
[1757859834482,4.572,4608.9,4608.8,0.08]
[1757859835503,4.572,4608.9,4608.8,0.3857]
[1757859835892,3.78,4608.9,4608.8,0.8168]
[1757859836295,3.78,4608.9,4608.8,1.2673]
[1757859836721,3.78,4608.9,4608.8,3.43706219]
[1757859837323,0.02712026,4609.1,4608.8,1.2673]
[1757859837623,3.78,4609.1,4609.0,2.16966804]
[1757859837823,3.78,4609.1,4609.0,3.35696804]
[1757859838510,0.02711614,4609.8,4609.0,1.1873]
[1757859838713,3.78,4609.7,4609.1,0.4311]
[1757859838914,3.78,4609.7,4609.0,0.7562]
[1757859838915,3.78,4609.7,4606.0,1.93819387]
[1757859838916,0.099,4609.2,4606.0,1.93819387]
[1757859839091,0.02712026,4609.1,4606.1,30.01108141]
[1757859839296,3.554,4609.0,4608.1,2.17005079]
[1757859839516,0.02712143,4608.9,4608.1,0.21700508]
[1757859839731,0.02712143,4608.9,4607.4,7.6154151]
[1757859839732,0.02712143,4608.9,4608.8,0.3057]
[1757859840023,0.02712143,4608.9,4608.4,2.16994133]
[1757859840228,0.02712143,4608.9,4608.8,0.3057]
[1757859841028,3.78,4609.3,4608.8,1.1873]
[1757859841191,3.78,4609.3,4608.9,0.8816]
[1757859841397,3.78,4609.3,4609.2,0.3057]
[1757859841597,3.78,4609.3,4609.2,2.90637389]
[1757859841909,3.78,4609.3,4609.2,3.35687389]
[1757859842628,0.02711614,4609.8,4609.7,2.16933856]
[1757859842802,0.02711614,4609.8,4608.3,2.16998201]
[1757859842803,1.665,4609.9,4609.8,3.3565915]
[1757859843003,3.78,4610.0,4609.9,2.16924445]
[1757859843211,3.78,4610.1,4610.0,2.16916168]
[1757859843533,0.108,4610.3,4610.2,2.16910329]
[1757859843729,0.108,4610.3,4610.2,3.35640329]
[1757859844418,0.108,4610.3,4610.0,2.16917831]
[1757859844419,0.4241,4610.3,4608.7,3.0]
[1757859844618,0.108,4609.3,4609.2,2.16957389]
[1757859844840,0.108,4609.3,4609.2,3.35687389]
[1757859845136,0.108,4609.3,4609.2,3.90952617]
[1757859846296,0.108,4609.3,4609.2,7.68952617]
[1757859847904,0.108,4609.3,4609.2,3.90952617]
[1757859848112,0.108,4609.3,4609.2,7.70058467]
[1757859848303,0.108,4609.3,4609.2,7.68952617]
[1757859848523,0.108,4609.3,4609.2,2.16957389]
[1757859848722,0.108,4609.3,4608.6,0.4505]
[1757859848723,0.2666,4609.3,4608.6,0.4505]
[1757859848905,0.1586,4609.3,4609.1,2.16961032]
[1757859849235,0.81911614,4609.8,4608.6,0.4505]
[1757859849404,0.108,4608.8,4608.7,0.4311]
[1757859849606,0.08,4610.8,4608.7,4.1873]
[1757859849816,0.48701085,4610.7,4608.9,3.0]
[1757859850022,0.792,4610.6,4610.0,2.16918291]
[1757859850310,0.1586,4610.1,4609.0,2.0961]
[1757859850615,0.02711202,4610.5,4609.3,2.16952682]
[1757859850820,0.02711202,4610.5,4609.4,2.16947975]
[1757859851015,0.02711202,4610.5,4610.4,2.16900919]
[1757859851239,0.02711143,4610.6,4610.4,2.16900919]
[1757859851441,0.02711143,4610.6,4609.7,2.16933856]
[1757859851641,0.02711143,4610.6,4609.8,0.4311]
[1757859851940,0.02711143,4610.6,4610.4,2.1690006]
[1757859852116,0.12071114,4610.5,4610.4,2.1690006]
[1757859852322,0.02711143,4610.6,4610.2,2.16908162]
[1757859852641,0.02711143,4610.6,4610.5,2.16896215]
[1757859853027,0.02711143,4610.6,4610.1,2.1691103]
[1757859853221,0.02711143,4610.6,4610.5,2.16896215]
[1757859853416,0.002,4610.5,4610.4,2.16900919]
[1757859853920,0.002,4610.5,4610.4,2.37132371]
[1757859854116,0.002,4610.5,4610.4,3.10812371]
[1757859854731,0.002,4610.5,4610.4,2.67702371]
[1757859855532,0.002,4610.5,4610.4,3.55862371]
[1757859857049,0.002,4610.5,4610.4,4.13139426]
[1757859857551,0.002,4610.5,4610.4,7.03379426]
[1757859857849,0.002,4610.5,4610.4,7.99089426]
[1757859858230,0.002,4610.5,4610.4,3.63412371]
[1757859858433,0.002,4610.5,4610.4,3.13582371]
[1757859859019,4.242,4610.5,4610.4,0.20231452]
[1757859859246,4.3941,4610.5,4610.4,2.37132371]
[1757859859441,4.242,4610.5,4610.4,2.37132371]
[1757859860047,4.3972,4610.5,4610.4,0.20231452]
[1757859860366,4.85922311,4610.5,4610.4,0.20231452]
[1757859860653,4.83211109,4610.5,4610.4,0.20231452]
[1757859861926,8.61111109,4610.5,4610.4,0.20231452]
[1757859863023,0.792,4609.8,4609.0,2.16965443]
[1757859863224,3.80611673,4609.7,4609.1,0.20227721]
[1757859863427,3.80611673,4609.7,4609.2,0.20227721]
[1757859863659,0.4665,4609.6,4609.3,0.20227721]
[1757859863861,5.97545729,4609.7,4608.4,2.16994572]
[1757859863862,0.1521,4609.4,4608.8,2.16975807]
[1757859864031,0.02711908,4609.3,4608.9,2.37198644]
[1757859864359,0.02711908,4609.3,4609.0,0.20229578]
[1757859864523,0.81911908,4609.3,4609.1,0.20229578]
[1757859864728,4.3976,4609.2,4608.5,2.16989965]
[1757859864938,0.02712026,4609.1,4608.6,0.20233615]
[1757859865134,0.02712026,4609.1,4608.7,0.20233615]
[1757859865335,0.81912026,4609.1,4608.8,0.20233615]
[1757859865670,0.81912026,4609.1,4608.9,0.20236375]
[1757859865876,0.02712026,4609.1,4609.0,2.67403179]
[1757859866065,3.779,4609.2,4609.1,2.16962096]